{"text_format":"1","workbook":"xlsx","n_sheets":2,"sheets":["【調査票 01】里親委託","data"],"not_rendered":{"charts":0,"images":1,"macros":1,"external_links":0,"defined_names":1,"comments":0,"pivot_tables":0},"unopened":[],"bounds":{"document_bytes":16777216,"sheet_cells":100000,"rows_first":2000,"rows_last":500,"rows_between":2000,"halvings":0,"cell_chars":16384,"cell_head_chars":4096},"cells_cut":0,"cells_raw":0,"read":"whole","date_system":"1900"}

{"sheet":"【調査票 01】里親委託","index":0,"n_rows":143,"n_cols":98,"rows_kept":143,"cut":false,"hidden":false,"merged":[[127,68,127,71],[125,40,125,56],[8,16,12,21],[12,68,12,74],[8,26,12,29],[8,36,12,39],[8,40,12,41],[11,46,12,51],[11,52,12,57],[8,46,9,50],[8,51,9,57],[8,58,12,62],[44,44,44,56],[22,72,22,81],[104,60,104,68],[91,19,91,22],[130,42,130,52],[131,42,131,52],[132,42,132,52],[134,1,136,15],[138,1,138,15],[107,21,107,28],[142,1,144,15],[115,1,125,15],[130,1,132,15],[139,1,139,15],[97,4,99,15],[102,4,104,15],[87,1,113,3],[109,4,113,15],[90,4,92,15],[93,4,95,15],[106,4,108,15],[71,1,83,3],[71,4,83,15],[84,1,86,15],[87,4,89,15],[24,4,32,15],[69,4,69,15],[16,1,69,3],[57,4,63,15],[51,4,53,15],[19,4,23,15],[17,4,17,15],[34,4,48,15],[68,4,68,15],[24,16,24,21],[24,56,29,67],[25,16,26,21],[27,16,27,21],[28,16,29,21],[30,16,32,21],[4,1,4,89],[5,1,5,89],[0,1,0,89],[1,1,2,17],[17,30,17,35],[17,60,17,65],[17,18,17,22],[17,24,17,28],[8,42,12,45],[8,63,12,66],[8,1,12,9],[8,76,8,88],[10,76,10,88],[14,76,14,89],[8,10,12,15],[64,69,64,83],[85,67,85,83],[8,68,11,74],[17,68,17,75],[17,79,17,82],[88,19,88,22],[88,26,88,29],[99,60,99,68],[91,75,91,76],[91,77,91,78],[93,45,95,56],[94,26,94,29],[94,70,94,73],[77,36,83,46],[87,35,89,43],[90,35,92,43],[90,61,92,68],[91,50,91,53],[8,22,12,25],[8,30,12,35],[17,38,17,45],[17,49,17,52],[71,36,75,46]]}
[null,"令和４年度児童養護施設入所児童等調査"]
[]
[]
[]
[null,"里親委託児童票"]
[null,"（令和５年２月１日現在）"]
[null,"　　　　　　　　　　　　　　　　　　　　　　　　　　　　　　　　　　　　　　　"]
[]
[null,"都道府県\n指定都市\n中核市\n児童相談所設置市\n（番号）",null,null,null,null,null,null,null,null,null,null,null,null,null,null,"児童\n相談所\n番号",null,null,null,null,null,null,null,null,null,"世帯\n\n番号",null,null,null,null,null,null,null,null,null,"児童\n\n番号",null,null,null,null,null,"措置\n\n区分",null,null,null,"",null,null,null,null,null,null,null,null,null,null,null,"調査票\n\n種別",null,null,null,null,"1",null,null,null,null,"都道府県\n指定都市\n中 核 市\n児童相談所設置市",null,null,null,null,null,null,null,""]
[]
[null,null,null,null,null,null,null,null,null,null,null,null,null,null,null,null,null,null,null,null,null,null,null,null,null,null,null,null,null,null,null,null,null,null,null,null,null,null,null,null,null,null,null,null,null,null,null,null,null,null,null,null,null,null,null,null,null,null,null,null,null,null,null,null,null,null,null,null,null,null,null,null,null,null,null,null,""]
[]
[null,null,null,null,null,null,null,null,null,null,null,null,null,null,null,null,null,null,null,null,null,null,null,null,null,null,null,null,null,null,null,null,null,null,null,null,null,null,null,null,null,null,null,null,null,null,null,null,null,null,null,null,null,null,null,null,null,null,null,null,null,null,null,null,null,null,null,null,"（名称）"]
[]
[null,null,null,null,null,null,null,null,null,null,null,null,null,null,null,null,null,null,null,null,null,null,null,null,null,null,null,null,null,null,null,null,null,null,null,null,null,null,null,null,null,null,null,null,null,null,null,null,null,null,null,null,null,null,null,null,null,null,null,null,null,null,null,null,null,null,null,null,"児童相談所名",null,null,null,null,null,null,null,"",null,null,null,null,null,null,null,null,null,null,null,null,null,null,null,null,null,null,null,"出生年月",{"$f":"AM18&RIGHT(100+ AX18,2)","v":"00"}]
[null,null,null,null,null,null,null,null,null,null,null,null,null,null,null,null,null,null,null,null,null,null,null,null,null,null,null,null,null,null,null,null,null,null,null,null,null,null,null,null,null,null,null,null,null,null,null,null,null,null,null,null,null,null,null,null,null,null,null,null,null,null,null,null,null,null,null,null,null,null,null,null,null,null,null,null,null,null,null,null,null,null,null,null,null,null,null,null,null,null,null,null,null,null,null,null,"委託年月",{"$f":"BQ18&RIGHT(100+CB18, 2)","v":"00"}]
[null,"児童の現在の状況"]
[null,null,null,null,"(1)\n性別",null,null,null,null,null,null,null,null,null,null,null,null,null,"0",null,null,null,null,null,null,null,null,null,null,null,"(2)\n出生年月",null,null,null,null,null,null,"西暦",null,null,null,null,null,null,null,null,"年",null,null,null,null,null,null,"月",null,null,null,null,null,null,"(3)\n委託年月",null,null,null,null,null,null,"西暦",null,null,null,null,null,null,null,null,"年",null,null,null,null,null,null,"月"]
[null,null,null,null,null,null,null,null,null,null,null,null,null,null,null,null,null,null,null,null,null,null,null,null,null,null,null,null,null,null,null,null,null,null,null,null,null,null,null,null,null,null,null,null,null,"."]
[null,null,null,null,"(4)\n委託経路"]
[]
[]
[null,null,null,null,null,null,null,null,null,null,null,null,null,null,null,null,null,null,null,null,null,null,null,null,null,null,null,null,null,null,null,null,null,null,null,null,null,null,null,null,null,null,null,null,null,null,null,null,null,null,null,null,null,null,null,null,null,null,null,null,null,null,null,null,null,null,"（具体的に",null,null,null,null,null,null,null,null,null,null,null,null,null,null,null,"）"]
[]
[null,null,null,null,"(5)\n就学及び\n就職状況",null,null,null,null,null,null,null,null,null,null,null,"就学前",null,null,null,null,null,null,null,null,null,null,null,null,null,null,null,null,null,null,null,null,null,null,null,null,null,null,null,null,null,null,null,null,null,null,null,null,null,null,null,"(5) 就学及び就職状況の「04 小学１年」～「14 私立高校」の補問"]
[null,null,null,null,null,null,null,null,null,null,null,null,null,null,null,null,"小学校"]
[]
[null,null,null,null,null,null,null,null,null,null,null,null,null,null,null,null,"中学校"]
[null,null,null,null,null,null,null,null,null,null,null,null,null,null,null,null,"中学卒"]
[]
[null,null,null,null,null,null,null,null,null,null,null,null,null,null,null,null,"高校卒"]
[]
[]
[]
[null,null,null,null,"(6)\n心身の状況\n\n(複数回答可)",null,null,null,null,null,null,null,null,null,null,null,null,null,false]
[]
[null,null,null,null,null,null,null,null,null,null,null,null,null,null,null,null,null,null,false,null,null,null,null,null,null,null,null,null,null,null,null,null,null,null,false,null,null,null,null,null,null,null,null,null,null,null,null,null,null,false,null,null,null,null,null,null,null,null,null,null,null,null,null,false]
[]
[null,null,null,null,null,null,null,null,null,null,null,null,null,null,null,null,null,null,false,null,null,null,null,null,null,null,null,null,null,null,null,null,null,null,false,null,null,null,null,null,null,null,null,null,null,null,null,null,null,false,null,null,null,null,null,null,null,null,null,null,null,null,null,false]
[]
[null,null,null,null,null,null,null,null,null,null,null,null,null,null,null,null,null,null,false,null,null,null,null,null,null,null,null,null,null,null,null,null,null,null,false,null,null,null,null,null,null,null,null,null,null,null,null,null,null,false]
[]
[null,null,null,null,null,null,null,null,null,null,null,null,null,null,null,null,null,null,false,null,null,null,null,null,null,null,null,null,null,null,null,null,null,null,null,null,null,null,null,null,null,false,null,null,null,null,null,null,null,false,null,null,null,null,null,null,null,null,null,null,null,null,null,false]
[]
[null,null,null,null,null,null,null,null,null,null,null,null,null,null,null,null,null,null,false,null,null,null,null,null,null,null,null,null,null,null,null,null,null,null,false,null,null,null,null,null,null,null,null,null,null,null,null,null,null,null,null,null,null,null,null,null,null,")"]
[]
[null,null,null,null,null,null,null,null,null,null,null,null,null,null,null,null,null,null,false]
[]
[null,null,null,null,null,null,null,null,null,null,null,null,null,null,null,null,null,null,false]
[]
[]
[null,null,null,null,"(7)\n罹病傾向\n(複数回答可)",null,null,null,null,null,null,null,null,null,null,null,null,null,false,null,null,null,null,null,null,null,null,null,null,null,null,null,null,null,false,null,null,null,null,null,null,null,null,null,null,null,null,null,null,false,null,null,null,null,null,null,null,null,null,null,null,null,null,false]
[]
[null,null,null,null,null,null,null,null,null,null,null,null,null,null,null,null,null,null,false,null,null,null,null,null,null,null,null,null,null,null,null,null,null,null,false,null,null,null,null,null,null,null,null,null,null,null,null,null,null,false]
[]
[]
[null,null,null,null,null,null,null,null,null,null,null,null,null,null,null,null,null,null,false,null,null,null,null,null,null,null,null,null,null,null,null,null,null,null,false,null,null,null,null,null,null,null,null,null,null,null,null,null,null,false,null,null,null,null,null,null,null,null,null,null,null,null,null,false]
[null,null,null,null,"(8)\n特に支援上\n留意している点\n\n(複数回答可)"]
[null,null,null,null,null,null,null,null,null,null,null,null,null,null,null,null,null,null,false,null,null,null,null,null,null,null,null,null,null,null,null,null,null,null,false,null,null,null,null,null,null,null,null,null,null,null,null,null,null,false,null,null,null,null,null,null,null,null,null,null,null,null,null,false]
[]
[null,null,null,null,null,null,null,null,null,null,null,null,null,null,null,null,null,null,false,null,null,null,null,null,null,null,null,null,null,null,null,null,null,null,false,null,null,null,null,null,null,null,null,null,null,null,null,null,null,false,null,null,null,null,null,null,null,null,null,null,null,null,null,false]
[]
[null,null,null,null,null,null,null,null,null,null,null,null,null,null,null,null,null,null,false,null,null,null,null,null,null,null,null,null,null,null,null,null,null,null,false,null,null,null,null,null,null,null,null,null,null,null,null,null,null,false,null,null,null,null,null,null,null,null,null,null,null,null,null,false]
[]
[null,null,null,null,null,null,null,null,null,null,null,null,null,null,null,null,null,null,false,null,null,null,null,null,null,null,null,null,null,null,null,null,null,null,false,null,null,null,null,null,null,null,null,null,null,null,null,null,null,false,null,null,null,null,null,null,null,null,null,null,null,null,null,false,null,null,null,null,null,null,null,null,null,null,null,null,null,null,null,null,null,null,null,null,")"]
[]
[null,null,null,null,null,null,null,null,null,null,null,null,null,null,null,null,null,null,false]
[]
[null,null,null,null,"(9)\n学業の状況"]
[null,null,null,null,"(10)\n通学状況"]
[]
[null,"委託時の家庭の状況",null,null,"(11)\n里親委託される\n直前の家庭の\n保護者の状況",null,null,null,null,null,null,null,null,null,null,null,null,null,null,null,null,null,null,null,null,null,null,null,null,null,null,null,null,null,null,null,"(11)の両親又は父母のどちらかありの補問"]
[]
[]
[]
[]
[]
[null,null,null,null,null,null,null,null,null,null,null,null,null,null,null,null,null,null,null,null,null,null,null,null,null,null,null,null,null,null,null,null,null,null,null,null,"(11)の両親ともいない又は不明の補問"]
[]
[]
[]
[]
[]
[]
[null,"(12)\n里親申込みの動機"]
[null,null,null,null,null,null,null,null,null,null,null,null,null,null,null,null,null,null,null,null,null,null,null,null,null,null,null,null,null,null,null,null,null,null,null,null,null,null,null,null,null,null,null,null,null,null,null,null,null,null,null,null,null,null,null,null,null,null,null,null,null,null,null,null,null,null,null,null,null,null,null,null,null,null,null,null,null,null,null,null,null,null,null,null,")"]
[]
[null,"里親家庭の現在の状況",null,null,"(13)\n登録期間",null,null,null,null,null,null,null,null,null,null,null,null,null,null,null,null,null,null,null,null,null,null,null,null,null,null,null,null,null,null,"(14) \n登録種別\n(複数回答可)"]
[null,null,null,null,null,null,null,null,null,null,null,null,null,null,null,null,null,null,null,null,null,null,null,"年",null,null,null,null,null,null,"か月",null,null,null,null,null,null,null,null,null,null,null,null,null,null,null,false,null,null,null,null,null,null,null,false,null,null,null,null,null,null,null,null,null,false,null,null,null,null,null,null,null,null,null,false]
[]
[null,null,null,null,"(15)\n世帯人員",null,null,null,null,null,null,null,null,null,null,null,null,null,null,null,null,null,null,null,null,null,null,null,null,null,null,null,null,null,null,"(16)\n児童数",null,null,null,null,null,null,null,null,null,null,null,null,null,null,null,null,null,null,null,null,null,null,null,null,null,"(17)\n委託児童数"]
[null,null,null,null,null,null,null,null,null,null,null,null,null,null,null,null,null,null,null,null,null,null,null,"人",null,null,null,null,null,null,null,null,null,null,null,null,null,null,null,null,null,null,null,null,null,null,null,null,null,null,null,null,null,null,"人",null,null,null,null,null,null,null,null,null,null,null,null,null,null,null,null,null,null,null,null,"0",null,null,null,"人"]
[]
[null,null,null,null,"(18)\n里父の有無\n及び年齢",null,null,null,null,null,null,null,null,null,null,null,null,null,null,null,null,null,null,null,null,null,null,null,null,null,null,null,null,null,null,null,null,null,null,null,null,null,null,null,null,"(19)\n里母の有無\n及び年齢"]
[null,null,null,null,null,null,null,null,null,null,null,null,null,null,null,null,null,null,null,null,null,null,null,null,null,null,null,null,null,null,"歳 ）",null,null,null,null,null,null,null,null,null,null,null,null,null,null,null,null,null,null,null,null,null,null,null,null,null,null,null,null,null,null,null,null,null,null,null,null,null,null,null,null,null,null,null,"歳 ）"]
[]
[]
[null,null,null,null,"(20)\n里父の仕事の種類"]
[]
[null,null,null,null,null,null,null,null,null,null,null,null,null,null,null,null,null,null,null,null,null,null,null,null,null,null,null,null,null,null,null,null,null,null,null,null,null,null,null,null,null,null,null,null,null,null,null,null,null,null,null,null,null,null,null,null,null,null,null,null,null,null,null,null,null,null,null,null,null,")"]
[null,null,null,null,null,null,null,null,null,null,null,null,null,null,null,null,null,"                                                     　"]
[]
[null,null,null,null,"(21)\n里母の仕事の種類"]
[]
[null,null,null,null,null,null,null,null,null,null,null,null,null,null,null,null,null,null,null,null,null,null,null,null,null,null,null,null,null,null,null,null,null,null,null,null,null,null,null,null,null,null,null,null,null,null,null,null,null,null,null,null,null,null,null,null,null,null,null,null,null,null,null,null,null,null,null,null,null,")"]
[null,null,null,null,null,null,null,null,null,null,null,null,null,null,null,null,null,"                                                     　"]
[null,null,null,null,"(22)\n里親家庭の\n年間所得(税込)"]
[null,null,null,null,null,null,null,null,null,null,null,null,null,null,null,null,null,null,null,null,null,null,null,null,null,null,null,null,null,null,"万円"]
[]
[null,null,null,null,"(23)\n住宅所有状況"]
[null,null,null,null,null,null,null,null,null,null,null,null,null,null,null,null,null,"自家 (",null,null,null,null,null,null,null,null,null,null,null,null,null,null,null,null,null,null,null,null,")",null,null,null,null,null,null,null,null,null,null,null,"借家 (",null,null,null,null,null,null,null,null,null,null,null,null,null,null,null,null,null,null,null,null,")"]
[]
[null,null,null,null,null,null,null,null,null,null,null,null,null,null,null,null,"　"]
[]
[]
[null,"(24)\n養護問題発生理由\n(複数回答可)",null,null,null,null,null,null,null,null,null,null,null,null,null,null,null,null,false,null,null,null,null,null,null,null,null,null,null,null,null,null,null,null,false,null,null,null,null,null,null,null,null,null,null,null,null,false,null,null,null,null,null,null,null,null,null,null,null,null,null,null,false,null,null,null,null,null,null,null,null,null,null,null,null,null,null,false]
[]
[null,null,null,null,null,null,null,null,null,null,null,null,null,null,null,null,null,null,false,null,null,null,null,null,null,null,null,null,null,null,null,null,null,null,false,null,null,null,null,null,null,null,null,null,null,null,null,false,null,null,null,null,null,null,null,null,null,null,null,null,null,null,false,null,null,null,null,null,null,null,null,null,null,null,null,null,null,false]
[]
[null,null,null,null,null,null,null,null,null,null,null,null,null,null,null,null,null,null,false,null,null,null,null,null,null,null,null,null,null,null,null,null,null,null,false,null,null,null,null,null,null,null,null,null,null,null,null,false,null,null,null,null,null,null,null,null,null,null,null,null,null,null,false,null,null,null,null,null,null,null,null,null,null,null,null,null,null,false]
[]
[null,null,null,null,null,null,null,null,null,null,null,null,null,null,null,null,null,null,false,null,null,null,null,null,null,null,null,null,null,null,null,null,null,null,false,null,null,null,null,null,null,null,null,null,null,null,null,false,null,null,null,null,null,null,null,null,null,null,null,null,null,null,false,null,null,null,null,null,null,null,null,null,null,null,null,null,null,false]
[]
[null,null,null,null,null,null,null,null,null,null,null,null,null,null,null,null,null,null,false,null,null,null,null,null,null,null,null,null,null,null,null,null,null,null,false,null,null,null,null,null,null,null,null,null,null,null,null,false,null,null,null,null,null,null,null,null,null,null,null,null,null,null,false]
[]
[null,null,null,null,null,null,null,null,null,null,null,null,null,null,null,null,null,null,false,null,null,null,null,null,null,null,null,null,null,null,null,null,null,null,false,null,null,true,null,null,null,null,null,null,null,null,null,null,null,null,null,null,null,null,null,null,null,")"]
[]
[null,null,null,null,null,null,null,null,null,null,null,null,null,null,null,null,null,null,null,null,null,null,null,null,null,null,null,null,null,null,null,null,null,null,null,null,null,null,null,null,null,null,null,null,null,null,null,"選択したもののうち、主な理由１つ"]
[]
[]
[null,"(25)\n被虐待経験の状況",null,null,null,null,null,null,null,null,null,null,null,null,null,null,null,null,null,null,null,null,null,null,null,null,null,null,null,null,null,null,null,null,null,null,null,null,null,null,null,null,"(25)の補問",null,null,null,null,null,null,null,null,null,null,null,null,null,null,null,null,null,null,false,null,null,null,null,null,null,null,null,null,null,false]
[null,null,null,null,null,null,null,null,null,null,null,null,null,null,null,null,null,null,null,null,null,null,null,null,null,null,null,null,null,null,null,null,null,null,null,null,null,null,null,null,null,null,"　虐待の種類"]
[null,null,null,null,null,null,null,null,null,null,null,null,null,null,null,null,null,null,null,null,null,null,null,null,null,null,null,null,null,null,null,null,null,null,null,null,null,null,null,null,null,null,"（複数回答可）",null,null,null,null,null,null,null,null,null,null,null,null,null,null,null,null,null,null,false,null,null,null,null,null,null,null,null,null,null,false]
[]
[null,"(26)\n現在の家族との関係"]
[null,null,null,null,null,null,null,null,null,null,null,null,null,null,null,null,null,"交流あり　（ ",null,null,null,null,null,null,null,null,null,null,null,null,null,null,null,null,null,null,null,null,null,null,null,null,null,null,null,null,null,null,null,null,null,")"]
[]
[]
[null,"(26)の補問"]
[null,"家族との交流の頻度"]
[]
[]
[null,"(27)\n児童の今後の見通し"]

{"sheet":"data","index":1,"n_rows":5,"n_cols":130,"rows_kept":5,"cut":false,"hidden":true,"merged":[[2,127,3,127],[2,128,3,128],[1,127,1,128],[2,129,3,129],[2,89,3,89],[1,90,1,91],[2,90,3,90],[2,91,3,91],[2,92,3,92],[2,93,3,93],[1,94,1,121],[1,88,1,89],[2,88,3,88],[2,94,2,121],[2,122,3,122],[1,122,1,126],[2,123,2,126],[2,83,3,83],[1,84,1,85],[2,84,2,85],[1,86,1,87],[2,86,2,87],[2,73,2,74],[1,77,1,80],[2,77,2,80],[2,81,3,81],[2,82,3,82],[1,75,1,76],[2,75,2,76],[1,73,1,74],[2,68,3,68],[2,69,3,69],[1,70,1,72],[2,70,3,70],[2,71,3,71],[2,72,3,72],[1,18,1,38],[2,18,2,38],[1,39,1,45],[2,39,2,45],[2,46,2,67],[1,46,1,67],[1,0,3,0],[2,14,3,14],[1,14,1,15],[2,15,3,15],[1,16,1,17],[2,16,3,16],[2,17,3,17],[2,10,2,11],[2,12,2,13],[1,10,1,11],[1,12,1,13],[2,9,3,9],[2,1,3,1],[1,1,1,8],[2,2,3,2],[2,3,3,3],[2,4,3,4],[2,5,3,5],[2,6,3,6],[2,7,3,7],[2,8,3,8]]}
[]
["項目","ＫＥＹ番号",null,null,null,null,null,null,null,"質問１","質問２",null,"質問３",null,"質問４",null,"質問５",null,"質問６",null,null,null,null,null,null,null,null,null,null,null,null,null,null,null,null,null,null,null,null,"質問７",null,null,null,null,null,null,"質問８",null,null,null,null,null,null,null,null,null,null,null,null,null,null,null,null,null,null,null,null,null,"質問９","質問10","質問11",null,null,"質問12",null,"質問13",null,"質問14",null,null,null,"質問15","質問16","質問17","質問18",null,"質問19",null,"質問20",null,"質問21",null,"質問22","質問23","質問24",null,null,null,null,null,null,null,null,null,null,null,null,null,null,null,null,null,null,null,null,null,null,null,null,null,null,null,"質問25",null,null,null,null,"質問26",null,"質問27"]
[null,"都道府県・指定都市・中核市・児童相談所設置市番号","児童相談所番号","世帯番号","児童番号","措置区分","調査票種別","自治体名","児童相談所名","性別","出生年月",null,"委託年月",null,"委託経路","具体的に","就学及び\n就職状況","補問","心身の状況",null,null,null,null,null,null,null,null,null,null,null,null,null,null,null,null,null,null,null,null,"罹病傾向",null,null,null,null,null,null,"特に支援上留意している点",null,null,null,null,null,null,null,null,null,null,null,null,null,null,null,null,null,null,null,null,null,"学業の状況","通学状況","里親委託される直前の家庭の保護者の状況","補問1","補問2","里親申込の動機",null,"登録期間",null,"登録種別",null,null,null,"世帯人員","児童数","委託児童数","里父の有無",null,"里母の有無",null,"里父の仕事\nの種類","自由記載","里母の仕事\nの種類","自由記載","里親家庭の年間所得（税込）","住宅所有状況","養護問題発生理由",null,null,null,null,null,null,null,null,null,null,null,null,null,null,null,null,null,null,null,null,null,null,null,null,null,null,null,"被虐待経験の状況","虐待の種類",null,null,null,"現在の家族との関係","補問","児童の今後の見通し"]
[null,null,null,null,null,null,null,null,null,null,"年","月","年","月",null,null,null,null,"01","02","03","04","05","06","07","08","09","10","11","12","13","14","15","16","17","18","19",20,"その他の障害等",1,2,3,4,5,6,7,"01","02","03","04","05","06","07","08","09","10","11","12","13","14","15","16","17","18","19","20","21","その他フリー",null,null,null,null,null,null,"フリーワード","年","か月",1,2,3,4,null,null,null,"有無","年齢","有無","年齢",null,null,null,null,null,null,"01","02","03","04","05","06","07","08","09","10","11","12","13","14","15","16","17","18","19","20","21","22","23","24","25","26","フリーワード","補問",null,1,2,3,4]
["回答",{"$f":"'【調査票 01】里親委託'!$K$9","v":0},{"$f":"'【調査票 01】里親委託'!$W$9","v":0},{"$f":"'【調査票 01】里親委託'!$AE$9","v":0},{"$f":"'【調査票 01】里親委託'!$AO$9","v":0},{"$f":"'【調査票 01】里親委託'!$AU$9","v":""},{"$f":"'【調査票 01】里親委託'!$BL$9","v":"1"},{"$f":"'【調査票 01】里親委託'!$BY$11","v":""},{"$f":"'【調査票 01】里親委託'!$BY$15","v":""},{"$f":"'【調査票 01】里親委託'!$S$18","v":"0"},{"$f":"'【調査票 01】里親委託'!$AM$18","v":0},{"$f":"'【調査票 01】里親委託'!$AX$18","v":0},{"$f":"'【調査票 01】里親委託'!$BQ$18","v":0},{"$f":"'【調査票 01】里親委託'!$CB$18","v":0},{"$f":"'【調査票 01】里親委託'!$T$21","v":0},{"$f":"'【調査票 01】里親委託'!$BU$23","v":0},{"$f":"'【調査票 01】里親委託'!$Y$25","v":0},{"$f":"'【調査票 01】里親委託'!$BR$25","v":0},{"$f":"IF('【調査票 01】里親委託'!$S$35=FALSE,0,1)","v":0},{"$f":"IF('【調査票 01】里親委託'!$S$37=FALSE,0,1)","v":0},{"$f":"IF('【調査票 01】里親委託'!$AI$37=FALSE,0,1)","v":0},{"$f":"IF('【調査票 01】里親委託'!$AX$37=FALSE,0,1)","v":0},{"$f":"IF('【調査票 01】里親委託'!$BL$37=FALSE,0,1)","v":0},{"$f":"IF('【調査票 01】里親委託'!$S$39=FALSE,0,1)","v":0},{"$f":"IF('【調査票 01】里親委託'!$AI$39=FALSE,0,1)","v":0},{"$f":"IF('【調査票 01】里親委託'!$AX$39=FALSE,0,1)","v":0},{"$f":"IF('【調査票 01】里親委託'!$BL$39=FALSE,0,1)","v":0},{"$f":"IF('【調査票 01】里親委託'!$S$41=FALSE,0,1)","v":0},{"$f":"IF('【調査票 01】里親委託'!$AI$41=FALSE,0,1)","v":0},{"$f":"IF('【調査票 01】里親委託'!$AX$41=FALSE,0,1)","v":0},{"$f":"IF('【調査票 01】里親委託'!$S$43=FALSE,0,1)","v":0},{"$f":"IF('【調査票 01】里親委託'!$AP$43=FALSE,0,1)","v":0},{"$f":"IF('【調査票 01】里親委託'!$AX$43=FALSE,0,1)","v":0},{"$f":"IF('【調査票 01】里親委託'!$BL$43=FALSE,0,1)","v":0},{"$f":"IF('【調査票 01】里親委託'!$S$45=FALSE,0,1)","v":0},{"$f":"IF('【調査票 01】里親委託'!$AI$45=FALSE,0,1)","v":0},{"$f":"IF('【調査票 01】里親委託'!$S$47=FALSE,0,1)","v":0},{"$f":"IF('【調査票 01】里親委託'!$S$49=FALSE,0,1)","v":0},{"$f":"'【調査票 01】里親委託'!$AS$45","v":0},{"$f":"IF('【調査票 01】里親委託'!$S$52=FALSE,0,1)","v":0},{"$f":"IF('【調査票 01】里親委託'!$AI$52=FALSE,0,1)","v":0},{"$f":"IF('【調査票 01】里親委託'!$AX$52=FALSE,0,1)","v":0},{"$f":"IF('【調査票 01】里親委託'!$BL$52=FALSE,0,1)","v":0},{"$f":"IF('【調査票 01】里親委託'!$S$54=FALSE,0,1)","v":0},{"$f":"IF('【調査票 01】里親委託'!$AI$54=FALSE,0,1)","v":0},{"$f":"IF('【調査票 01】里親委託'!$AX$54=FALSE,0,1)","v":0},{"$f":"IF('【調査票 01】里親委託'!$S$57=FALSE,0,1)","v":0},{"$f":"IF('【調査票 01】里親委託'!$AI$57=FALSE,0,1)","v":0},{"$f":"IF('【調査票 01】里親委託'!$AX$57=FALSE,0,1)","v":0},{"$f":"IF('【調査票 01】里親委託'!$BL$57=FALSE,0,1)","v":0},{"$f":"IF('【調査票 01】里親委託'!$S$59=FALSE,0,1)","v":0},{"$f":"IF('【調査票 01】里親委託'!$AI$59=FALSE,0,1)","v":0},{"$f":"IF('【調査票 01】里親委託'!$AX$59=FALSE,0,1)","v":0},{"$f":"IF('【調査票 01】里親委託'!$BL$59=FALSE,0,1)","v":0},{"$f":"IF('【調査票 01】里親委託'!$S$61=FALSE,0,1)","v":0},{"$f":"IF('【調査票 01】里親委託'!$AI$61=FALSE,0,1)","v":0},{"$f":"IF('【調査票 01】里親委託'!$AX$61=FALSE,0,1)","v":0},{"$f":"IF('【調査票 01】里親委託'!$BL$61=FALSE,0,1)","v":0},{"$f":"IF('【調査票 01】里親委託'!$S$63=FALSE,0,1)","v":0},{"$f":"IF('【調査票 01】里親委託'!$AI$63=FALSE,0,1)","v":0},{"$f":"IF('【調査票 01】里親委託'!$AX$63=FALSE,0,1)","v":0},{"$f":"IF('【調査票 01】里親委託'!$BL$63=FALSE,0,1)","v":0},{"$f":"IF('【調査票 01】里親委託'!$S$65=FALSE,0,1)","v":0},{"$f":"IF('【調査票 01】里親委託'!$AI$65=FALSE,0,1)","v":0},{"$f":"IF('【調査票 01】里親委託'!$AX$65=FALSE,0,1)","v":0},{"$f":"IF('【調査票 01】里親委託'!$BL$65=FALSE,0,1)","v":0},{"$f":"IF('【調査票 01】里親委託'!$S$67=FALSE,0,1)","v":0},{"$f":"'【調査票 01】里親委託'!$BR$65","v":0},{"$f":"'【調査票 01】里親委託'!$S$69","v":0},{"$f":"'【調査票 01】里親委託'!$S$70","v":0},{"$f":"'【調査票 01】里親委託'!$S$71","v":0},{"$f":"'【調査票 01】里親委託'!$AW$71","v":0},{"$f":"'【調査票 01】里親委託'!$AW$79","v":0},{"$f":"'【調査票 01】里親委託'!$S$86","v":0},{"$f":"'【調査票 01】里親委託'!$BP$86","v":0},{"$f":"'【調査票 01】里親委託'!$T$89","v":0},{"$f":"'【調査票 01】里親委託'!$AA$89","v":0},{"$f":"IF('【調査票 01】里親委託'!$AU$89=FALSE,0,1)","v":0},{"$f":"IF('【調査票 01】里親委託'!$BC$89=FALSE,0,1)","v":0},{"$f":"IF('【調査票 01】里親委託'!$BM$89=FALSE,0,1)","v":0},{"$f":"IF('【調査票 01】里親委託'!$BW$89=FALSE,0,1)","v":0},{"$f":"'【調査票 01】里親委託'!$T$92","v":0},{"$f":"'【調査票 01】里親委託'!$AY$92","v":0},{"$f":"'【調査票 01】里親委託'!$BZ$92","v":0},{"$f":"'【調査票 01】里親委託'!$V$95","v":0},{"$f":"'【調査票 01】里親委託'!$AA$95","v":0},{"$f":"'【調査票 01】里親委託'!$BO$95","v":0},{"$f":"'【調査票 01】里親委託'!$BS$95","v":0},{"$f":"'【調査票 01】里親委託'!$S$98","v":0},{"$f":"'【調査票 01】里親委託'!$BI$100","v":0},{"$f":"'【調査票 01】里親委託'!$S$103","v":0},{"$f":"'【調査票 01】里親委託'!$BI$105","v":0},{"$f":"'【調査票 01】里親委託'!$V$108","v":0},{"$f":"'【調査票 01】里親委託'!$V$111","v":0},{"$f":"IF('【調査票 01】里親委託'!$S$116=FALSE,0,1)","v":0},{"$f":"IF('【調査票 01】里親委託'!$AI$116=FALSE,0,1)","v":0},{"$f":"IF('【調査票 01】里親委託'!$AV$116=FALSE,0,1)","v":0},{"$f":"IF('【調査票 01】里親委託'!$BK$116=FALSE,0,1)","v":0},{"$f":"IF('【調査票 01】里親委託'!$BZ$116=FALSE,0,1)","v":0},{"$f":"IF('【調査票 01】里親委託'!$S$118=FALSE,0,1)","v":0},{"$f":"IF('【調査票 01】里親委託'!$AI$118=FALSE,0,1)","v":0},{"$f":"IF('【調査票 01】里親委託'!$AV$118=FALSE,0,1)","v":0},{"$f":"IF('【調査票 01】里親委託'!$BK$118=FALSE,0,1)","v":0},{"$f":"IF('【調査票 01】里親委託'!$BZ$118=FALSE,0,1)","v":0},{"$f":"IF('【調査票 01】里親委託'!$S$120=FALSE,0,1)","v":0},{"$f":"IF('【調査票 01】里親委託'!$AI$120=FALSE,0,1)","v":0},{"$f":"IF('【調査票 01】里親委託'!$AV$120=FALSE,0,1)","v":0},{"$f":"IF('【調査票 01】里親委託'!$BK$120=FALSE,0,1)","v":0},{"$f":"IF('【調査票 01】里親委託'!$BZ$120=FALSE,0,1)","v":0},{"$f":"IF('【調査票 01】里親委託'!$S$122=FALSE,0,1)","v":0},{"$f":"IF('【調査票 01】里親委託'!$AI$122=FALSE,0,1)","v":0},{"$f":"IF('【調査票 01】里親委託'!$AV$122=FALSE,0,1)","v":0},{"$f":"IF('【調査票 01】里親委託'!$BK$122=FALSE,0,1)","v":0},{"$f":"IF('【調査票 01】里親委託'!$BZ$122=FALSE,0,1)","v":0},{"$f":"IF('【調査票 01】里親委託'!$S$124=FALSE,0,1)","v":0},{"$f":"IF('【調査票 01】里親委託'!$AI$124=FALSE,0,1)","v":0},{"$f":"IF('【調査票 01】里親委託'!$AV$124=FALSE,0,1)","v":0},{"$f":"IF('【調査票 01】里親委託'!$BK$124=FALSE,0,1)","v":0},{"$f":"IF('【調査票 01】里親委託'!$S$126=FALSE,0,1)","v":0},{"$f":"IF('【調査票 01】里親委託'!$AI$126=FALSE,0,1)","v":0},{"$f":"'【調査票 01】里親委託'!$AO$126","v":0},{"$f":"'【調査票 01】里親委託'!$BQ$128","v":0},{"$f":"'【調査票 01】里親委託'!$S$131","v":0},{"$f":"IF('【調査票 01】里親委託'!$BJ$131=FALSE,0,1)","v":0},{"$f":"IF('【調査票 01】里親委託'!$BU$131=FALSE,0,1)","v":0},{"$f":"IF('【調査票 01】里親委託'!$BJ$133=FALSE,0,1)","v":0},{"$f":"IF('【調査票 01】里親委託'!$BU$133=FALSE,0,1)","v":0},{"$f":"'【調査票 01】里親委託'!$Z$136","v":0},{"$f":"'【調査票 01】里親委託'!$S$140","v":0},{"$f":"'【調査票 01】里親委託'!$S$143","v":0}]